fUST/lending_fUST_20250222
["ID","MTS","AMOUNT","RATE_DAILY","PERIOD"]
[353931978,1740154232565,-956.76505,9.9e-05,2]
[353931982,1740154232626,-2750.0,9.9e-05,2]
[353931983,1740154232637,-1293.23495,9.9e-05,2]
[353931984,1740154232647,-300.0,9.999e-05,2]
[353931985,1740154232657,-2113.0,0.0001,2]
[353931987,1740154232667,-2112.0,0.0001,2]
[353931989,1740154232676,-2112.0,0.0001,2]
[353931991,1740154232686,-2112.0,0.0001,2]
[353931993,1740154232695,-5000.0,0.00010318,2]
[353931994,1740154232704,-12457.76505,0.00010606,2]
[353931995,1740154232734,-1086.68515072,0.00010606,2]
[353931996,1740154232746,-6041.93023706,0.00010606,2]
[353931997,1740154232778,-5313.61956222,0.00010606,2]
[353931998,1740154232788,-166.66666666,0.00010641,2]
[353931999,1740154232799,-500.0,0.00010741,2]
[353932000,1740154232809,-500.0,0.00010741,2]
[353932001,1740154232818,-1587.3698204,0.00010854,2]
[353932002,1740154232827,-612.76,0.00010959,2]
[353932003,1740154232837,-657.94,0.00010959,2]
[353932004,1740154232846,-548.29,0.00010959,2]
[353932005,1740154232856,-456.91,0.00010959,2]
[353932006,1740154232865,-380.75,0.00010959,2]
[353932007,1740154232875,-317.3,0.00010959,2]
[353932008,1740154232884,-264.41,0.00010959,2]
[353932009,1740154232894,-220.34,0.00010959,2]
[353932010,1740154232904,-420.0,0.00010999,2]
[353932011,1740154232913,-297.4716009,0.00011113,2]
[353932012,1740154232923,-250.0,0.0001119,2]
[353932013,1740154232933,-500.0,0.00011588,2]
[353932014,1740154232942,-431.45045739,0.0001193,2]
[353932015,1740154232951,-587.0,0.00012099,2]
[353932016,1740154232961,-166.0,0.00012329,2]
[353932017,1740154232971,-166.99532529,0.000129,2]
[353932018,1740154232980,-166.99532525,0.000129,2]
[353932019,1740154232990,-166.99532525,0.000129,2]
[353932020,1740154232999,-823.0,0.00013309,2]
[353932021,1740154233009,-166.99532525,0.00013436,2]
[353932022,1740154233019,-152.0,0.00013504,2]
[353932023,1740154233034,-500.0,0.00013698,2]
[353932024,1740154233045,-500.0,0.00013698,2]
[353932025,1740154233055,-530.97172849,0.00013698,2]
[353932026,1740154233065,-500.0,0.00013698,2]
[353932027,1740154233075,-500.43243631,0.00013698,2]
[353932028,1740154233085,-500.0,0.00013698,2]
[353932029,1740154233095,-500.0,0.00013698,2]
[353932030,1740154233105,-500.0,0.00013698,2]
[353932031,1740154233116,-176.04,0.00013698,2]
[353932032,1740154233126,-500.0,0.00013698,2]
[353932033,1740154233136,-224.03843869,0.00013698,2]
[353932034,1740154233147,-500.0,0.00013698,2]
[353932035,1740154233157,-2189.12,0.00013698,2]
[353932036,1740154233166,-500.0,0.00013698,2]
[353932037,1740154233176,-500.0,0.00013698,2]
[353932038,1740154233186,-500.0,0.00013698,2]
[353932039,1740154233196,-500.0,0.00013698,2]
[353932040,1740154233206,-500.0,0.00013698,2]
[353932041,1740154233216,-502.59270022,0.00013698,2]
[353932042,1740154233226,-500.0,0.00013698,2]
[353932043,1740154233236,-390.71084177,0.00013698,2]
[353932044,1740154233246,-500.0,0.00013698,2]
[353932045,1740154233256,-500.0,0.00013698,2]
[353932046,1740154233266,-500.0,0.00013698,2]
[353932047,1740154233278,-500.0,0.00013698,2]
[353932048,1740154233288,-500.0,0.00013698,2]
[353932049,1740154233298,-500.0,0.00013698,2]
[353932050,1740154233308,-502.75135873,0.00013698,2]
[353932051,1740154233318,-502.28389194,0.00013698,2]
[353932052,1740154233328,-501.82939185,0.00013698,2]
[353932053,1740154233338,-500.0,0.00013698,2]
[353932054,1740154233348,-500.0,0.00013698,2]
[353932055,1740154233358,-500.0,0.00013698,2]
[353932056,1740154233368,-531.31,0.00013698,2]
[353932057,1740154233377,-501.50409442,0.00013698,2]
[353932058,1740154233387,-263.53940758,0.00013698,2]
[353932059,1740154233397,-500.0,0.00013698,2]
[353932060,1740154233407,-500.84114936,0.00013698,2]
[353932061,1740154233417,-500.0,0.00013698,2]
[353932062,1740154233429,-500.0,0.00013698,2]
[353932063,1740154233440,-500.0,0.00013698,2]
[353932064,1740154233449,-500.0,0.00013698,2]
[353932065,1740154233460,-500.0,0.00013698,2]
[353932066,1740154233470,-3634.08,0.00013698,2]
[353932067,1740154233479,-646.26,0.00013698,2]
[353932068,1740154233489,-500.0,0.00013698,2]
[353932069,1740154233500,-500.0,0.00013698,2]
[353932070,1740154233510,-167.68885533,0.00013698,2]
[353932071,1740154233519,-500.0,0.00013698,2]
[353932072,1740154233531,-500.0,0.00013698,2]
[353932073,1740154233541,-1106.76,0.00013698,2]
[353932074,1740154233551,-500.0,0.00013698,2]
[353932075,1740154233561,-500.0,0.00013698,2]
[353932076,1740154233571,-500.0,0.00013698,2]
[353932077,1740154233580,-818.1,0.00013698,2]
[353932078,1740154233591,-500.0,0.00013698,2]
[353932079,1740154233600,-500.0,0.00013698,2]
[353932080,1740154233610,-473.64,0.00013698,2]
[353932081,1740154233620,-552.76,0.00013698,2]
[353932082,1740154233630,-500.0,0.00013698,2]
[353932083,1740154233639,-500.0,0.00013698,2]
[353932084,1740154233649,-500.0,0.00013698,2]
[353932085,1740154233659,-1388.85,0.00013698,2]
[353932086,1740154233669,-500.0,0.00013698,2]
[353932087,1740154233679,-500.0,0.00013698,2]
[353932088,1740154233689,-500.0,0.00013698,2]
[353932089,1740154233699,-500.0,0.00013698,2]
[353932090,1740154233709,-1694.01,0.00013698,2]
[353932091,1740154233719,-264.30008156,0.00013698,2]
[353932092,1740154233729,-286.83771265,0.00013698,2]
[353932093,1740154233739,-172.126898,0.00013699,2]
[353932094,1740154233749,-500.0,0.00013727,2]
[353932095,1740154233759,-151.07481282,0.00013753,2]
[353932096,1740154233769,-503.85790626,0.00013753,2]
[353932097,1740154233782,-500.0,0.00013753,2]
[353932098,1740154233792,-500.0,0.0001378,2]
[353932099,1740154233802,-500.0,0.0001378,2]
[353932100,1740154233812,-500.0,0.0001378,2]
[353932101,1740154233822,-500.0,0.0001378,2]
[353932102,1740154233832,-2189.12,0.0001378,2]
[353932103,1740154233846,-500.0,0.0001378,2]
[353932104,1740154233855,-500.0,0.0001378,2]
[353932105,1740154233865,-531.31,0.0001378,2]
[353932106,1740154233875,-500.0,0.0001378,2]
[353932107,1740154233885,-500.0,0.0001378,2]
[353932108,1740154233895,-500.0,0.0001378,2]
[353932109,1740154233904,-500.0,0.0001378,2]
[353932110,1740154233914,-3634.08,0.0001378,2]
[353932111,1740154233924,-500.0,0.0001378,2]
[353932112,1740154233934,-500.0,0.0001378,2]
[353932113,1740154233945,-500.0,0.0001378,2]
[353932114,1740154233955,-1106.76,0.0001378,2]
[353932115,1740154233964,-500.0,0.0001378,2]
[353932116,1740154233976,-500.0,0.0001378,2]
[353932117,1740154233986,-500.0,0.0001378,2]
[353932118,1740154233995,-818.1,0.0001378,2]
[353932119,1740154234005,-500.0,0.0001378,2]
[353932120,1740154234014,-552.76,0.0001378,2]
[353932121,1740154234025,-500.0,0.0001378,2]
[353932122,1740154234034,-1388.85,0.0001378,2]
[353932123,1740154234044,-500.0,0.0001378,2]
[353932124,1740154234054,-500.0,0.0001378,2]
[353932125,1740154234063,-1694.01,0.0001378,2]
[353932126,1740154234073,-3862.38337413,0.00013809,2]
[353932127,1740154234083,-7438.69753278,0.00013847,2]
[353932128,1740154234092,-618.78859112,0.00013863,2]
[353932129,1740154234102,-500.0,0.00013863,2]
[353932130,1740154234112,-500.0,0.00013863,2]
[353932131,1740154234121,-271.36069535,0.00013863,2]
[353932132,1740154234131,-2189.12,0.00013863,2]
[353932133,1740154234141,-500.0,0.00013863,2]
[353932134,1740154234150,-500.0,0.00013863,2]
[353932135,1740154234160,-531.31,0.00013863,2]
[353932136,1740154234169,-500.0,0.00013863,2]
[353932137,1740154234178,-500.0,0.00013863,2]
[353932138,1740154234301,-648.62432643,0.00013863,2]
[353932139,1740154234311,-500.0,0.00013863,2]
[353932140,1740154234321,-3634.08,0.00013863,2]
[353932141,1740154234330,-212.80052396,0.00013863,2]
[353932142,1740154234340,-500.0,0.00013863,2]
[353932143,1740154234351,-500.0,0.00013863,2]
[353932144,1740154234360,-1106.76,0.00013863,2]
[353932145,1740154234370,-500.0,0.00013863,2]
[353932146,1740154234380,-500.0,0.00013863,2]
[353932147,1740154234390,-500.0,0.00013863,2]
[353932148,1740154234400,-818.1,0.00013863,2]
[353932149,1740154234410,-500.0,0.00013863,2]
[353932150,1740154234428,-552.76,0.00013863,2]
[353932151,1740154234444,-500.0,0.00013863,2]
[353932152,1740154234455,-1388.85,0.00013863,2]
[353932153,1740154234466,-500.0,0.00013863,2]
[353932154,1740154234477,-500.0,0.00013863,2]
[353932155,1740154234487,-1694.01,0.00013863,2]
[353932156,1740154234499,-198.73,0.00013945,2]
[353932157,1740154234509,-500.0,0.00013945,2]
[353932158,1740154234520,-2189.12,0.00013945,2]
[353932159,1740154234533,-500.0,0.00013945,2]
[353932160,1740154234543,-500.0,0.00013945,2]
[353932161,1740154234554,-531.31,0.00013945,2]
[353932162,1740154234564,-500.0,0.00013945,2]
[353932163,1740154234574,-500.0,0.00013945,2]
[353932164,1740154234585,-500.0,0.00013945,2]
[353932165,1740154234596,-3634.08,0.00013945,2]
[353932166,1740154234608,-500.0,0.00013945,2]
[353932167,1740154234618,-500.0,0.00013945,2]
[353932168,1740154234628,-1106.76,0.00013945,2]
[353932169,1740154234639,-500.0,0.00013945,2]
[353932170,1740154234649,-500.0,0.00013945,2]
[353932171,1740154234659,-500.0,0.00013945,2]
[353932172,1740154234669,-818.1,0.00013945,2]
[353932173,1740154234679,-500.0,0.00013945,2]
[353932174,1740154234688,-500.0,0.00013945,2]
[353932175,1740154234699,-1388.85,0.00013945,2]
[353932176,1740154234709,-500.0,0.00013945,2]
[353932177,1740154234719,-500.0,0.00013945,2]
[353932178,1740154234729,-1694.01,0.00013945,2]
[353932179,1740154234743,-500.0,0.00013962,2]
[353932180,1740154234752,-518.73600501,0.00013962,2]
[353932181,1740154234763,-229.518,0.00014,2]
[353932182,1740154234774,-500.0,0.00014027,2]
[353932183,1740154234784,-2189.12,0.00014027,2]
[353932184,1740154234794,-500.0,0.00014027,2]
[353932185,1740154234804,-500.0,0.00014027,2]
[353932186,1740154234814,-531.31,0.00014027,2]
[353932187,1740154234824,-500.0,0.00014027,2]
[353932188,1740154234835,-500.0,0.00014027,2]
[353932189,1740154234844,-500.0,0.00014027,2]
[353932190,1740154234855,-3634.08,0.00014027,2]
[353932191,1740154234864,-500.0,0.00014027,2]
[353932192,1740154234875,-500.0,0.00014027,2]
[353932193,1740154234886,-1106.76,0.00014027,2]
[353932194,1740154234896,-500.0,0.00014027,2]
[353932195,1740154234905,-500.0,0.00014027,2]
[353932196,1740154234915,-500.0,0.00014027,2]
[353932197,1740154234925,-818.1,0.00014027,2]
[353932198,1740154234935,-500.0,0.00014027,2]
[353932199,1740154234945,-500.0,0.00014027,2]
[353932200,1740154234955,-1388.85,0.00014027,2]
[353932201,1740154234964,-500.0,0.00014027,2]
[353932202,1740154234974,-500.0,0.00014027,2]
[353932203,1740154234983,-1694.01,0.00014027,2]
[353932204,1740154234993,-1432.29576199,0.00014081,2]
[353932205,1740154235003,-151.0,0.000141,2]
[353932206,1740154235014,-500.0,0.00014109,2]
[353932207,1740154235025,-2189.12,0.00014109,2]
[353932208,1740154235034,-500.0,0.00014109,2]
[353932209,1740154235044,-500.0,0.00014109,2]
[353932210,1740154235054,-531.31,0.00014109,2]
[353932211,1740154235065,-500.0,0.00014109,2]
[353932212,1740154235075,-500.0,0.00014109,2]
[353932213,1740154235085,-500.0,0.00014109,2]
[353932214,1740154235095,-3634.08,0.00014109,2]
[353932215,1740154235105,-610.59075963,0.00014109,2]
[353932216,1740154235115,-500.0,0.00014109,2]
[353932217,1740154235125,-1106.76,0.00014109,2]
[353932218,1740154235136,-500.0,0.00014109,2]
[353932219,1740154235146,-500.0,0.00014109,2]
[353932220,1740154235156,-393.73662317,0.00014109,2]
[353932221,1740154235166,-818.1,0.00014109,2]
[353932222,1740154235175,-500.0,0.00014109,2]
[353932223,1740154235184,-500.0,0.00014109,2]
[353932224,1740154235194,-1388.85,0.00014109,2]
[353932225,1740154235204,-500.0,0.00014109,2]
[353932226,1740154235215,-500.0,0.00014109,2]
[353932227,1740154235224,-1694.01,0.00014109,2]
[353932228,1740154235234,-150.0,0.00014126,2]
[353932229,1740154235243,-538.0,0.00014126,2]
[353932230,1740154235253,-1969.0,0.00014126,2]
[353932231,1740154235262,-2288.0,0.00014126,2]
[353932232,1740154235274,-396.0,0.00014126,2]
[353932233,1740154235283,-500.0,0.00014191,2]
[353932234,1740154235292,-2189.12,0.00014191,2]
[353932235,1740154235302,-500.0,0.00014191,2]
[353932236,1740154235312,-500.0,0.00014191,2]
[353932237,1740154235322,-531.31,0.00014191,2]
[353932238,1740154235331,-500.0,0.00014191,2]
[353932239,1740154235341,-500.0,0.00014191,2]
[353932240,1740154235351,-500.0,0.00014191,2]
[353932241,1740154235360,-3634.08,0.00014191,2]
[353932242,1740154235370,-295.87105537,0.00014191,2]
[353932243,1740154235379,-1106.76,0.00014191,2]
[353932244,1740154235389,-500.0,0.00014191,2]
[353932245,1740154235398,-500.0,0.00014191,2]
[353932246,1740154235409,-818.1,0.00014191,2]
[353932247,1740154235422,-500.0,0.00014191,2]
[353932248,1740154235432,-500.0,0.00014191,2]
[353932249,1740154235442,-1388.85,0.00014191,2]
[353932250,1740154235452,-626.40893289,0.00014191,2]
[353932251,1740154235462,-500.0,0.00014191,2]
[353932252,1740154235472,-1694.01,0.00014191,2]
[353932253,1740154235481,-500.0,0.00014273,2]
[353932254,1740154235491,-2189.12,0.00014273,2]
[353932255,1740154235502,-500.0,0.00014273,2]
[353932256,1740154235512,-500.0,0.00014273,2]
[353932257,1740154235524,-531.31,0.00014273,2]
[353932258,1740154235533,-500.0,0.00014273,2]
[353932259,1740154235543,-500.0,0.00014273,2]
[353932260,1740154235554,-500.0,0.00014273,2]
[353932261,1740154235563,-554.92210931,0.00014273,2]
[353932310,1740154238596,-183.62,0.00010959,2]
[353932311,1740154238606,-999.61739488,0.00013561,2]
[353932312,1740154238617,-1062.40197776,0.00013561,2]
[353932313,1740154238626,-500.0,0.00013698,2]
[353932314,1740154238635,-500.0,0.0001378,2]
[353932315,1740154238645,-500.0,0.00013863,2]
[353932316,1740154238654,-500.0,0.00013945,2]
[353932317,1740154238663,-500.0,0.00014027,2]
[353932318,1740154238673,-500.0,0.00014109,2]
[353932319,1740154238682,-3079.15789069,0.00014273,2]
[353932320,1740154238691,-1106.76,0.00014273,2]
[353932321,1740154238701,-500.0,0.00014273,2]
[353932323,1740154238710,-226.07938965,0.00014273,2]
[353932325,1740154238721,-273.92061035,0.00014273,2]
[353932327,1740154238730,-818.1,0.00014273,2]
[353932329,1740154238739,-500.0,0.00014273,2]
[353932331,1740154238749,-500.0,0.00014273,2]
[353932333,1740154238758,-1388.85,0.00014273,2]
[353932334,1740154238767,-500.0,0.00014273,2]
[353932335,1740154238779,-1694.01,0.00014273,2]
[353932336,1740154238788,-500.0,0.00014275,2]
[353932337,1740154238796,-2362.97210003,0.00014283,2]
[353932338,1740154238805,-1000.0,0.00014301,2]
[353932339,1740154238815,-500.0,0.00014328,2]
[353932340,1740154238824,-500.0,0.00014356,2]
[353932341,1740154238833,-2189.12,0.00014356,2]
[353932342,1740154238842,-500.0,0.00014356,2]
[353932343,1740154238851,-531.31,0.00014356,2]
[353932344,1740154238860,-500.0,0.00014356,2]
[353932345,1740154238868,-500.0,0.00014356,2]
[353932346,1740154238878,-500.0,0.00014356,2]
[353932347,1740154238887,-3634.08,0.00014356,2]
[353932348,1740154238896,-1106.76,0.00014356,2]
[353932349,1740154238905,-500.0,0.00014356,2]
[353932350,1740154238914,-500.0,0.00014356,2]
[353932351,1740154238923,-818.1,0.00014356,2]
[353932352,1740154238932,-500.0,0.00014356,2]
[353932353,1740154238942,-500.0,0.00014356,2]
[353932354,1740154238951,-1388.85,0.00014356,2]
[353932355,1740154238960,-500.0,0.00014356,2]
[353932356,1740154238968,-1694.01,0.00014356,2]
[353932357,1740154238978,-5974.379509,0.000144,30]
[353932358,1740154238987,-166.99532525,0.00014402,2]
[353932359,1740154238996,-181.15205488,0.00014418,2]
[353932360,1740154239004,-200.7597062,0.00014429,2]
[353932361,1740154239013,-445.99603417,0.00014429,2]
[353932362,1740154239022,-500.0,0.00014429,2]
[353932363,1740154239035,-316.56552002,0.00014429,2]
[353932364,1740154239044,-500.0,0.00014429,2]
[353932365,1740154239053,-500.0,0.00014429,2]
[353932366,1740154239061,-500.0,0.00014429,2]
[353932367,1740154239070,-500.0,0.00014429,2]
[353932368,1740154239079,-500.0,0.00014429,2]
[353932369,1740154239088,-500.0,0.00014429,2]
[353932370,1740154239097,-500.0,0.00014429,2]
[353932371,1740154239106,-500.0,0.00014429,2]
[353932372,1740154239115,-500.0,0.00014429,2]
[353932373,1740154239124,-500.0,0.00014429,2]
[353932374,1740154239133,-500.0,0.00014429,2]
[353932375,1740154239142,-500.0,0.00014429,2]
[353932376,1740154239151,-500.0,0.00014429,2]
[353932377,1740154239160,-500.0,0.00014429,2]
[353932378,1740154239169,-500.0,0.00014429,2]
[353932379,1740154239179,-500.0,0.00014429,2]
[353932380,1740154239188,-500.0,0.00014429,2]
[353932381,1740154239197,-500.0,0.00014429,2]
[353932382,1740154239206,-500.0,0.00014429,2]
[353932383,1740154239215,-500.0,0.00014429,2]
[353932384,1740154239224,-500.0,0.00014429,2]
[353932385,1740154239234,-500.0,0.00014429,2]
[353932386,1740154239246,-500.0,0.00014429,2]
[353932387,1740154239255,-500.0,0.00014429,2]
[353932388,1740154239265,-500.0,0.00014429,2]
[353932389,1740154239278,-500.0,0.00014429,2]
[353932390,1740154239288,-500.0,0.00014429,2]
[353932391,1740154239297,-500.0,0.00014429,2]
[353932392,1740154239307,-500.0,0.00014429,2]
[353932393,1740154239316,-500.0,0.00014429,2]
[353932394,1740154239326,-500.0,0.00014429,2]
[353932395,1740154239335,-500.0,0.00014429,2]
[353932396,1740154239345,-500.0,0.00014429,2]
[353932397,1740154239461,-500.0,0.00014429,2]
[353932398,1740154239472,-500.0,0.00014429,2]
[353932399,1740154239481,-500.0,0.00014429,2]
[353932400,1740154239492,-500.0,0.00014429,2]
[353932401,1740154239501,-500.0,0.00014429,2]
[353932402,1740154239510,-436.23298999,0.00014429,2]
[353932403,1740154239519,-500.0,0.00014429,2]
[353932404,1740154239531,-500.0,0.00014429,2]
[353932405,1740154239540,-500.0,0.00014429,2]
[353932406,1740154239550,-500.0,0.00014429,2]
[353932407,1740154239564,-500.0,0.00014429,2]
[353932408,1740154239573,-500.0,0.00014429,2]
[353932409,1740154239584,-500.0,0.00014429,2]
[353932410,1740154239594,-500.0,0.00014429,2]
[353932411,1740154239603,-500.0,0.00014429,2]
[353932412,1740154239613,-500.0,0.00014429,2]
[353932413,1740154239622,-500.0,0.00014429,2]
[353932414,1740154239632,-500.0,0.00014429,2]
[353932415,1740154239642,-500.0,0.00014429,2]
[353932416,1740154239651,-500.0,0.00014429,2]
[353932417,1740154239660,-500.0,0.00014429,2]
[353932418,1740154239670,-500.0,0.00014429,2]
[353932419,1740154239679,-500.0,0.00014429,2]
[353932420,1740154239688,-500.0,0.00014429,2]
[353932421,1740154239697,-500.0,0.00014429,2]
[353932422,1740154239707,-500.0,0.00014429,2]
[353932423,1740154239716,-500.0,0.00014429,2]
[353932424,1740154239725,-500.0,0.00014429,2]
[353932425,1740154239735,-500.0,0.00014429,2]
[353932426,1740154239744,-500.0,0.00014429,2]
[353932427,1740154239754,-500.0,0.00014429,2]
[353932428,1740154239763,-500.0,0.00014429,2]
[353932429,1740154239773,-500.0,0.00014429,2]
[353932430,1740154239786,-500.0,0.00014429,2]
[353932431,1740154239796,-500.0,0.00014429,2]
[353932432,1740154239805,-500.0,0.00014429,2]
[353932434,1740154239815,-500.0,0.00014429,2]
[353932435,1740154239825,-500.0,0.00014429,2]
[353932436,1740154239835,-500.0,0.00014429,2]
[353932438,1740154239845,-500.0,0.00014429,2]
[353932439,1740154239854,-500.0,0.00014429,2]
[353932440,1740154239864,-500.0,0.00014429,2]
[353932441,1740154239875,-500.0,0.00014429,2]
[353932442,1740154239884,-500.0,0.00014429,2]
[353932443,1740154239894,-500.0,0.00014429,2]
[353932444,1740154239903,-500.0,0.00014429,2]
[353932445,1740154239914,-352.9486518,0.00014429,2]
[353932446,1740154239923,-500.0,0.00014429,2]
[353932447,1740154239933,-500.0,0.00014429,2]
[353932448,1740154239943,-500.0,0.00014429,2]
[353932449,1740154239952,-500.0,0.00014429,2]
[353932450,1740154239961,-500.0,0.00014429,2]
[353932451,1740154239971,-500.0,0.00014429,2]
[353932452,1740154239981,-500.0,0.00014429,2]
[353932453,1740154239991,-500.0,0.00014429,2]
[353932455,1740154240001,-500.0,0.00014429,2]
[353932456,1740154240011,-21.95644283,0.00014429,2]
[353932506,1740154240602,-419.89537566,0.00014191,2]
[353932513,1740154240664,-80.10462434,0.00014191,2]
[353932515,1740154240674,-537.6,0.00014273,2]
[353932517,1740154240684,-478.04355717,0.00014429,2]
[353932519,1740154240694,-23.49739385,0.00014429,2]
[353932816,1740154243472,-476.50260615,0.00014429,2]
[353932818,1740154243482,-500.0,0.00014429,2]
[353932820,1740154243492,-500.0,0.00014429,2]
[353932822,1740154243502,-317.54739385,0.00014429,2]
[353933076,1740154246587,-0.04193215,0.00014049,2]
[353933881,1740154406756,1689.0,8.001e-05,2]
[353933888,1740155215091,-162.23576931,0.00010849,2]
[353933930,1740155432868,-1707.4053094,0.00010741,2]
[353933932,1740155438598,-3292.5946906,0.00010741,2]
[353933933,1740155438609,-500.0,0.00011588,2]
[353933934,1740155438619,-300.0,0.0001221,2]
[353933935,1740155438629,-24900.0,0.00012211,2]
[353933936,1740155438638,-250.0,0.00012211,2]
[353933937,1740155438647,-11139.15496764,0.000125,2]
[353933938,1740155438656,-1233.8140226,0.00012672,2]
[353933939,1740155438666,-166.0,0.00012749,2]
[353933940,1740155438675,-166.99532525,0.000129,2]
[353933941,1740155438684,-420.0,0.00013401,2]
[353933942,1740155438694,-500.0,0.00013473,2]
[353933943,1740155438703,-500.0,0.00013473,2]
[353933944,1740155438712,-500.0,0.00013473,2]
[353933945,1740155438721,-268.57218789,0.00013499,2]
[353933946,1740155438730,-500.0,0.00013499,2]
[353933948,1740155438739,-416.03877517,0.00013499,2]
[353933949,1740155438748,-500.0,0.00013499,2]
[353933950,1740155438758,-500.0,0.00013499,2]
[353933951,1740155438767,-500.0,0.00013499,2]
[353933952,1740155438777,-604.02588778,0.00013499,2]
[353933953,1740155438792,-500.0,0.00013499,2]
[353933954,1740155438801,-500.0,0.00013499,2]
[353933955,1740155438810,-500.0,0.00013499,2]
[353933956,1740155438819,-500.0,0.00013499,2]
[353933957,1740155438829,-500.0,0.00013499,2]
[353933958,1740155438838,-500.0,0.00013499,2]
[353933959,1740155438847,-500.0,0.00013499,2]
[353933960,1740155438856,-500.0,0.00013499,2]
[353933961,1740155438865,-500.0,0.00013499,2]
[353933962,1740155438876,-500.0,0.00013499,2]
[353933963,1740155438886,-500.0,0.00013499,2]
[353933964,1740155438895,-485.27281311,0.00013499,2]
[353933965,1740155438904,-500.0,0.00013499,2]
[353933966,1740155438913,-500.0,0.00013499,2]
[353933967,1740155438923,-500.0,0.00013499,2]
[353933968,1740155438934,-500.0,0.00013499,2]
[353933969,1740155438943,-500.0,0.00013499,2]
[353933970,1740155438953,-500.0,0.00013499,2]
[353933971,1740155438962,-500.0,0.00013499,2]
[353933972,1740155438972,-500.0,0.00013499,2]
[353933973,1740155438981,-500.0,0.00013499,2]
[353933974,1740155438991,-504.18944002,0.00013499,2]
[353933975,1740155438999,-500.0,0.00013499,2]
[353933976,1740155439009,-500.0,0.00013499,2]
[353933977,1740155439018,-500.0,0.00013499,2]
[353933978,1740155439027,-500.0,0.00013499,2]
[353933979,1740155439037,-500.0,0.00013499,2]
[353933980,1740155439047,-500.0,0.00013499,2]
[353933981,1740155439056,-500.0,0.00013499,2]
[353933982,1740155439066,-500.0,0.00013499,2]
[353933983,1740155439075,-500.0,0.00013499,2]
[353933984,1740155439084,-500.0,0.00013499,2]
[353933985,1740155439095,-500.0,0.00013499,2]
[353933986,1740155439104,-500.0,0.00013499,2]
[353933987,1740155439114,-500.0,0.00013499,2]
[353933988,1740155439123,-500.0,0.00013499,2]
[353933989,1740155439133,-500.0,0.00013499,2]
[353933990,1740155439142,-500.0,0.00013499,2]
[353933991,1740155439151,-500.0,0.00013499,2]
[353933992,1740155439160,-500.0,0.00013499,2]
[353933993,1740155439169,-500.0,0.00013499,2]
[353933994,1740155439178,-500.0,0.00013499,2]
[353933995,1740155439187,-500.0,0.00013499,2]
[353933996,1740155439196,-500.0,0.00013499,2]
[353933997,1740155439205,-500.0,0.00013499,2]
[353933998,1740155439215,-500.0,0.00013499,2]
[353933999,1740155439224,-500.0,0.00013499,2]
[353934000,1740155439233,-500.0,0.00013499,2]
[353934001,1740155439242,-500.0,0.00013499,2]
[353934002,1740155439252,-500.0,0.00013499,2]
[353934003,1740155439262,-500.0,0.00013499,2]
[353934004,1740155439271,-500.0,0.00013499,2]